Cogmind - Beta 10.2 @@@ ROGUE MODE // 2021.10.16 @ 19:15:55 Player: Bebob Result: Self-destructed Performance ------------- Evolutions (2) 1000 Regions Visited (3) 600 Robots Destroyed (17) 85 Value Destroyed (538) 538 Prototype IDs (0) 0 Alien Tech Used (0) 0 Bonus (0) 0 TOTAL SCORE: 2223 Bonus ------- None Cogmind --------- Core Integrity 526/550 Matter 300/300 Energy 100/100 System Corruption 0% Temperature Cool (0) Movement Core (50) Location -8/Materials Parts ------- > --- POWER (2) -------- (None) > --- PROPULSION (2) --- (None) > --- UTILITY (4) ------ (None) > --- WEAPON (3) ------- (None) > --- INVENTORY (4) ---- Aluminum Leg Aluminum Leg Small Storage Unit Transmission Jammer Peak State ------------ > --- POWER ------------ Ion Engine > --- PROPULSION ------- Aluminum Leg Aluminum Leg > --- UTILITY ---------- Improved Heat Sink Small Storage Unit Light Armor Plating Hacking Suite > --- WEAPON ----------- Small Laser Small Laser > --- INVENTORY -------- Light Treads Light Treads Aluminum Leg ECM Suite [Rating: 13] Favorites ----------- Power Ion Engine Engine Ion Engine Propulsion Aluminum Leg Leg Aluminum Leg Utility Small Storage Unit Device ECM Suite Storage Small Storage Unit Hackware Hacking Suite Protection Light Armor Plating Weapon EM Pulse Gun Energy Gun EM Pulse Gun Build | -11 -10 -9 -8 ------- Run | Scr Mat Mat Mat Slots Evolved 4 | . . 2 2 Power 1 | . . . 1 Propulsion . | . . . . Utility 2 | . . 2 . Weapon 1 | . . . 1 Parts Attached 27 | 6 12 9 . Power 3 | 1 2 . . Engine 3 | 1 2 . . Core . | . . . . Reactor . | . . . . Propulsion 8 | 2 5 1 . Treads . | . . . . Leg 8 | 2 5 1 . Wheel . | . . . . Hover . | . . . . Flight . | . . . . Utility 6 | 1 2 3 . Device 3 | . 1 2 . Storage 1 | 1 . . . Processor . | . . . . Hackware 1 | . 1 . . Protection 1 | . . 1 . Artifact . | . . . . Weapon 10 | 2 3 5 . Energy Gun 10 | 2 3 5 . Energy Cannon . | . . . . Ballistic Gun . | . . . . Ballistic Cannon . | . . . . Launcher . | . . . . Special Weapon . | . . . . Impact Weapon . | . . . . Slashing Weapon . | . . . . Piercing Weapon . | . . . . Special Melee Weapon . | . . . . Unidentified Prototypes . | . . . . Parts Lost 11 | . 1 10 . Power 1 | . . 1 . Propulsion 2 | . . 2 . Utility 3 | . . 3 . Weapon 5 | . 1 4 . Highest Loss Streak 8 | . 1 8 . Average Slot Usage (%) 89 | . 98 81 . Engine 11 | . 14 7 . Leg 23 | . 28 17 . Device 8 | . 2 18 . Storage 11 | . 14 9 . Hackware 7 | . 10 2 . Protection 2 | . . 7 . Energy Gun 22 | . 27 17 . Naked Turns 36 | . . 3 33 Heaviest Build 20 | 13 14 20 . Greatest Support 20 | 20 20 20 3 Greatest Overweight (x) . | . . . . Average Overweight (x) . | . . . . Largest Inventory Capacity 6 | 6 6 6 4 Average Capacity 5 | 5 6 5 4 Most Carried 6 | 6 6 6 4 Average Carried 4 | 3 5 3 3 Final Capacity 6 | 6 6 4 4 Final Carried 6 | 2 6 3 4 Class Distribution -------------------- 56% | Scavenger-Mutant 43% | Mutant Dominant Class ---------------- Scavenger-Mutant | -10/Materials Scavenger-Mutant | -9/Materials Mutant | -8/Materials Resources | -11 -10 -9 -8 ----------- Run | Scr Mat Mat Mat Matter Collected 430 | 221 134 75 . Remotely . | . . . . Salvage Created 739 | . 498 241 . Parts 42 | . 28 14 . Haulers Intercepted 2 | . 1 1 . Recyclers Shooed . | . . . . Parts Field Recycled . | . . . . Retrieved Matter . | . . . . Parts Self-Destructed . | . . . . Prevented . | . . . . Kills | -11 -10 -9 -8 ------- Run | Scr Mat Mat Mat Combat Hostiles Destroyed 13 | . 9 4 . Guns 11 | . 7 4 . AOE 2 | . 2 . . Classes Destroyed 5 | . 4 1 . Hauler 2 | . 1 1 . Operator 1 | . 1 . . Watcher 1 | . 1 . . Grunt 12 | . 9 3 . Sentry 1 | . . 1 . Best Kill Streak 3 | . 3 3 . Combat Bots Only 2 | . 2 2 . Max Kills in Single Turn 2 | . 2 1 . Gunslinging . | . . . . Exploded 2 | . 2 . . Melee . | . . . . Uniques/NPCs Destroyed . | . . . . Combat | -11 -10 -9 -8 -------- Run | Scr Mat Mat Mat Damage Taken 1255 | . 290 941 24 Core 375 | . 36 315 24 Absorbed by Shields . | . . . . Core Remaining (%) 68 | 100 85 21 . Volleys Fired 61 | . 39 22 . Largest 2 | . 2 2 . Hottest 105 | . 105 101 . Shots Fired 112 | . 70 42 . Gun 112 | . 70 42 . Cannon . | . . . . Launcher . | . . . . Special . | . . . . Kinetic . | . . . . Thermal 60 | . 31 29 . Explosive . | . . . . Electromagnetic 52 | . 39 13 . Robot Hit Streak 8 | . 8 7 . Robot Miss Streak 5 | . 5 3 . Penetration Max . | . . . . Secondary Targets 1 | . 1 . . Max Gunslinging Chain 1 | . 1 . . Shots Hit Robots 66 | . 41 25 . Core Hits 23 | . 15 8 . Critical Hits . | . . . . Critical Kills . | . . . . Critical Parts Destroyed . | . . . . Melee Attacks . | . . . . Impact . | . . . . Slashing . | . . . . Piercing . | . . . . Sneak Attacks . | . . . . Combat Hostiles . | . . . . Follow-up Attacks . | . . . . Damage Inflicted 1109 | . 798 311 . Guns 955 | . 644 311 . Cannons . | . . . . Explosions 154 | . 154 . . Melee . | . . . . Ramming . | . . . . Kinetic . | . . . . Thermal 621 | . 394 227 . Explosive . | . . . . Electromagnetic 488 | . 404 84 . Impact . | . . . . Slashing . | . . . . Piercing . | . . . . Highest Corruption 1 | . 1 . . Average Corruption 1 | . 1 . . Corruption Purged . | . . . . Overload Shots . | . . . . Overflow Damage 18 | . 18 . . Projectiles . | . . . . Explosions 18 | . 18 . . Melee . | . . . . Knockbacks . | . . . . Impact . | . . . . Kinetic . | . . . . Secondary . | . . . . Self-Inflicted Damage . | . . . . Shots . | . . . . Rammed . | . . . . Targets Rammed . | . . . . Kicked . | . . . . Crushed . | . . . . Highest Temperature 408 | . 408 22 . Average Temperature 96 | . 102 11 . Received Heat Transfer 357 | . 162 195 . Effects 1 | . 1 . . Shutdowns 1 | . 1 . . Siege Activations . | . . . . Robots Corrupted . | . . . . Combat Hostiles . | . . . . Parts Fried 2 | . 2 . . Impact Corruptions . | . . . . Robots Melted . | . . . . Combat Hostiles . | . . . . Parts Melted 1 | . 1 . . Heat Transferred 1327 | . 792 535 . Parts Sabotaged . | . . . . Parts Stolen . | . . . . Parts Stripped . | . . . . Power Chain Reactions 3 | . 3 . . Missiles Intercepted . | . . . . Alert | -11 -10 -9 -8 ------- Run | Scr Mat Mat Mat Peak Influence 222 | . 222 194 65 Initial 65 | . . 53 65 Average 91 | . 85 128 65 Maximum Alert Level 1 | . 1 . . Low Security (%) 93 | 100 88 100 100 Level 1 6 | . 11 . . Level 2 . | . . . . Level 3 . | . . . . Level 4 . | . . . . Level 5 . | . . . . High Security . | . . . . Max Security . | . . . . Squads Dispatched 5 | . 3 1 1 Investigation 2 | . 1 . 1 Extermination . | . . . . Reinforcement 3 | . 2 1 . Assault . | . . . . Garrison . | . . . . Intercept . | . . . . Construction Impeded . | . . . . Haulers Reinforced . | . . . . Stealth | -11 -10 -9 -8 --------- Run | Scr Mat Mat Mat Distress Signals 3 | . 1 1 1 Communications Jammed . | . . . . Distress Signals . | . . . . Times Spotted 39 | . 17 15 7 Peak Tracking Total 8 | . 3 6 8 Tactical Retreats 1 | . . 1 . Traps | -11 -10 -9 -8 ------- Run | Scr Mat Mat Mat Traps Triggered 2 | . 1 . 1 Indirectly . | . . . . Trap Hack Attempts . | . . . . Triggered . | . . . . Disarmed . | . . . . Reprogrammed . | . . . . Reused . | . . . . Traps Extracted . | . . . . Installed . | . . . . Triggered 2 | . 2 . . Machines | -11 -10 -9 -8 ---------- Run | Scr Mat Mat Mat Machines Disabled 1 | . 1 . . Max in Single Turn 1 | . 1 . . Machines Sabotaged . | . . . . Garrisons Compromised . | . . . . Overloaded Fab Kills . | . . . . Fab Network Shutdowns . | . . . . Hacking | -11 -10 -9 -8 --------- Run | Scr Mat Mat Mat Machines Accessed 4 | . 2 2 . Terminals 2 | . 1 1 . Fabricators . | . . . . Repair Stations . | . . . . Recycling Units 2 | . 1 1 . Scanalyzers . | . . . . Garrison Access . | . . . . Total Hacks 10 | . 4 6 . Successful 5 | . 2 3 . Failed 5 | . 2 3 . Catastrophic . | . . . . Database Lockouts . | . . . . Manual . | . . . . Terminals 6 | . 3 3 . Fabricators . | . . . . Repair Stations . | . . . . Recycling Units 4 | . 1 3 . Scanalyzers . | . . . . Garrison Access . | . . . . Terminal Hacks 2 | . 1 1 . Alert Level 1 | . 1 . . Hauler Manifests 1 | . . 1 . Fabricator Hacks . | . . . . Repair Station Hacks . | . . . . Recycling Unit Hacks 3 | . 1 2 . Report Inventory 2 | . 1 1 . Retrieve Components 1 | . . 1 . Scanalyzer . | . . . . Garrison Access Hacks . | . . . . Unauthorized Hacks . | . . . . Terminals . | . . . . Fabricators . | . . . . Repair Stations . | . . . . Recycling Units . | . . . . Scanalyzers . | . . . . Garrison Access . | . . . . Data Cores Recovered . | . . . . Used . | . . . . Hacking Detections 4 | . 2 2 . Full Trace Events 1 | . . 1 . Feedback Events . | . . . . Feedback Blocked . | . . . . Robot Schematics Acquired . | . . . . Robots Built . | . . . . Matter . | . . . . Time . | . . . . Total Robot Build Rating . | . . . . Part Schematics Acquired . | . . . . Parts Built . | . . . . Matter . | . . . . Time . | . . . . Total Part Build Rating . | . . . . Parts Repaired . | . . . . Time . | . . . . Parts Recycled . | . . . . Recycled Matter . | . . . . Retrieved Matter . | . . . . Retrieved Components 2 | . . 2 . Parts Scanalyzed . | . . . . Part Schematics Acquired . | . . . . Parts Damaged . | . . . . Bothacking | -11 -10 -9 -8 ------------ Run | Scr Mat Mat Mat Used RIF Installer . | . . . . Robots Hacked . | . . . . Non-combat . | . . . . Combat . | . . . . Robot Hacks Applied . | . . . . Relay Couplers Released . | . . . . Robots Rewired . | . . . . Allies Hacked . | . . . . Hacks Repelled . | . . . . Allies | -11 -10 -9 -8 -------- Run | Scr Mat Mat Mat Total Allies . | . . . . Largest Group . | . . . . Highest-Rated Group . | . . . . Highest-Rated Ally . | . . . . Total Orders . | . . . . Ally Attacks . | . . . . Total Damage . | . . . . Kills . | . . . . Allies Corrupted . | . . . . Allies Melted . | . . . . Intel | -11 -10 -9 -8 ------- Run | Scr Mat Mat Mat Robot Analysis Total . | . . . . Derelict Logs Recovered . | . . . . Drone Launches . | . . . . Drone Recoveries . | . . . . Exploration | -11 -10 -9 -8 ------------- Run | Scr Mat Mat Mat Turns Passed 974 | 85 537 319 33 Spaces Moved 675 | 63 308 242 62 Core 152 | 11 . 79 62 Treads . | . . . . Legs 523 | 52 308 163 . Wheels . | . . . . Hover . | . . . . Flight . | . . . . Fastest Speed 50 | 50 120 50 50 Average Speed 104 | 107 120 97 50 Slowest Speed 120 | 120 120 120 50 Overloaded Moves . | . . . . Propulsion Burnouts . | . . . . Robots Hopped . | . . . . Cave-ins Triggered . | . . . . Exploration Rate (%) 20 | 3 42 20 16 Regions Visited 3 Branch Regions . Pre-discovered Areas . | . . . . Known Exits Taken . | . . . . Unknown Exits Taken 3 | 1 1 1 . Scrap Searched . | . . . . Spaces Dug . | . . . . Terrain Destroyed 3 | . 3 . . Melee . | . . . . Projectile . | . . . . AOE 3 | . 3 . . Terrain Rammed . | . . . . Walls Destroyed . | . . . . Machines Disabled . | . . . . Actions | -11 -10 -9 -8 --------- Run | Scr Mat Mat Mat Total 838 | 80 410 285 63 Wait 38 | 3 34 1 . Move 672 | 62 307 241 62 Hop . | . . . . Pick Up 21 | 8 7 5 1 Fast Attach 2 | 1 1 . . Attach 12 | 5 1 6 . Detach 2 | . . 2 . Swap 13 | . 10 3 . Drop 17 | 1 11 5 . Fire 61 | . 39 22 . Melee . | . . . . Ram . | . . . . Kick . | . . . . Crush . | . . . . Escape Stasis . | . . . . Rewire . | . . . . Trap . | . . . . Miscellaneous . | . . . . Route ------- -11/Scrapyard -10/Materials -9/Materials -8/Materials History --------- Turn | Location | Event 11 | -11/Scrapyard | Discovered new exit (range 15) 86 | -11/Scrapyard | Entered Materials 600 | -10/Materials | Build established: Scavenger-Mutant 615 | -10/Materials | Discovered new exit (range 7) 623 | -10/Materials | Entered another Materials area 623 | -9/Materials | Evolved 2 slots: Utility x2 921 | -9/Materials | Core integrity fell below 50% 934 | -9/Materials | Lost 8 parts (1p2n1u4w) 936 | -9/Materials | Discovered new exit (range 13) 942 | -9/Materials | Entered another Materials area 942 | -8/Materials | Evolved 2 slots: Power x1, Weapon x1 975 | -8/Materials | Self-destructed Last Messages --------------- 00878_ R-06 Scavenger collects Aluminum Leg. 00882_ Acquired 25 matter. 00885_ Sml. Laser destroyed. 00885_ Aluminum Leg destroyed. 00903_ Sml. Laser destroyed. 00931_ K-01 Serf collects debris. 00935_ ECM Suite destroyed. 00935_ K-01 Serf collects debris. 00936_ EXIT=FOUND 00939_ Imp. Heat Sink destroyed. PARAMETERS=POWER_1,WEAPON_1 LOCATION=UNKNOWN GOAL=ESCAPE 00947_ Acquired Transmission Jammer. 00966_ K-01 Serf collects debris. 00969_ Triggered Alarm Trap. 00969_ An alarm sounds. 00969_ ALERT: Alarm triggered, dispatching investigation squad. 00969_ K-01 Serf cleans the Matter Pump. 00971_ W-25 Informer sends out distress signal. Map ----- +----------------------------------------------------+ | ????????????????????????????????????????????###### | | ????????????????????????????????????????##### | | ???????????????????????????????########## #] ! | | ???????????????????????????????# # # | | ???????????????????????????????# # # | | ???????????????????????????????#] # # """ | | ???????????????????????????????# # # """ | | ???????????????????????????????# + + """ | | ???????????????????????????????# ! !!! # # | | ???????????????????????????????# !!! # # """ | | ??????????????????????? ???????# !!! # # """ | | ??????????????????????# ???????# # # """ | | ??????????????????????# ###????#######+## # | | ??????????????????????# ??????????# ###### | | ??????????????????????# ??????????# #????? | | ??????????????????????# ########??# #????? | | ??????????????????????# # # #????? | | ??????????????????????# # / #????? | | ?????????????????????## # # ##+#####? | | ?????????????????????+ + ??# # #? | | ?????????????????????# ##########?# # """ #? | | ??????????? ??###+## #?# ! #?# # """ #? | | ??????????? s # #?# #?# #= """ #? | | ???????????? /ss #?# #?# # #? | | ????????????????# #?? #?# #! #? | | ????????????????????# @#??? #?# ########? | | ????????????????????# #???? ### #####???? | | ????????????????????# #######/## #???? | | ????????????????????# w T #???? | | ????????????????????# #???? | | ????????????????????# ! """ """ ! #???? | | ????????????????????# """ """ #???? | | ????????????????????# """ """ #???? | | ????????????????????# #???? | | ????????????????????# #???? | | ????????????????????## """ """ """ ???? | | ???????????????????? """ """ """ ??? | | ??????????????????? """ """ """ ??!?? | | ??????????????????# ###### ?????????? | | ??????????????????# ?????# ? ?????????? | | ?????????????????? ??????# """ """ "?????????? | | ?????????????????????????# "?" ""? "?????????? | | ?????????????????????????# "?? "?? ??????????? | | ?????????????????????????# ??? ???????????????? | | ?????????????????????????? ????????????????????? | | ?????????????????????????????????????????????????? | | ?????????????????????????????????????????????????? | | ?????????????????????????????????????????????????? | | ?????????????????????????????????????????????????? | | ?????????????????????????????????????????????????? | +----------------------------------------------------+ Best States ------------- Heat Dissipation 42 Energy Generation 10 Energy Capacity 250 Matter Stores 300 Matter Capacity 300 Sight Range 16 Terrain Scan Density 10 ECM Strength 1 Armor Coverage 150 Evasion (%) 50 Offensive Hacking 10 Item Schematics ----------------- None Robot Schematics ------------------ None Fabricated ------------ Nothing Alien Tech Used ----------------- None Achievements -------------- None Challenges ------------ None Game ------ Seed InsulatedCompactNanovents Manual? 0 Play Time 00:20:47 Cumulative 30.9 hours Start 2021.10.16 @ 18:51:23 End 2021.10.16 @ 19:15:55 Sessions 1 Manual Loads 0 Difficulty Rogue Special Mode None Game No. 17 Rogue 17 Adventurer 0 Explorer 0 Win Type - Total 0 Types 0/0/0/0/0/0/0/0/0 Lore% 20 Gallery% 17 Achievement% 8 Wizard Run 0 Options --------- ASCII 0 Keyboard 0 Movement Mouse Keybinds 0 Fullscreen 1 Font 36/Smallcaps Map View 76x50 Tactical HUD 1 Map Filters NONE Filters NONE Steam 1 RUN: eea3dedd-4064-4a85-bf17-68d63de03ff0